fUSD/lending_fUSD_20260528
["ID","MTS","AMOUNT","RATE_DAILY","PERIOD"]
[423212502,1779936632000,-150.0,0.00013901,2]
[423212507,1779936632000,-150.0,0.00013973,2]
[423212503,1779936632000,-150.0,0.00013953,2]
[423212508,1779936632000,-150.0,0.00013987,2]
[423212514,1779936632000,-250.0,0.00014,2]
[423212516,1779936632000,-150.0,0.00014056,2]
[423212522,1779936632000,-3424.02670927,0.00014154,2]
[423212518,1779936632000,-166.66,0.0001411,2]
[423212505,1779936632000,-166.66,0.00013973,2]
[423212569,1779936634000,154.0,0.00028082,120]
[423212580,1779936638000,-1294.481,0.00014313,2]
[423212570,1779936638000,-200.0,0.00012983,2]
[423212571,1779936638000,-1219.53603552,0.00014252,2]
[423212572,1779936638000,-308.60668889,0.00014252,2]
[423212574,1779936638000,-1745.0319,0.00014254,2]
[423212573,1779936638000,-884273.18565882,0.00014252,2]
[423212575,1779936638000,-150.0,0.00014263,2]
[423212576,1779936638000,-297.2552321,0.00014266,2]
[423212582,1779936638000,-3250.81596591,0.00014313,2]
[423212578,1779936638000,-154.52433561,0.00014273,2]
[423212581,1779936638000,-178.162,0.00014313,2]
[423212583,1779936638000,-150.0,0.00014315,2]
[423212584,1779936638000,-3424.02670919,0.0001432,2]
[423212585,1779936638000,-150.0,0.0001432,2]
[423212587,1779936638000,-500.0,0.00014352,2]
[423212577,1779936638000,-1798.62529453,0.00014268,2]
[423212586,1779936638000,-219.56928089,0.00014344,2]
[423212630,1779936639000,-500.0,0.00014352,2]
[423212638,1779936639000,-500.0,0.00014352,2]
[423212631,1779936639000,-441.0,0.00014352,2]
[423212643,1779936639000,-500.0,0.00014352,2]
[423212640,1779936639000,-441.0,0.00014352,2]
[423212641,1779936639000,-441.0,0.00014352,2]
[423212637,1779936639000,-441.0,0.00014352,2]
[423212633,1779936639000,-441.0,0.00014352,2]
[423212639,1779936639000,-441.0,0.00014352,2]
[423212634,1779936639000,-500.0,0.00014352,2]
[423212632,1779936639000,-500.0,0.00014352,2]
[423212642,1779936639000,-441.0,0.00014352,2]
[423212635,1779936639000,-441.0,0.00014352,2]
[423212636,1779936639000,-441.0,0.00014352,2]
[423212651,1779936639000,-441.0,0.00014352,2]
[423212646,1779936639000,-441.0,0.00014352,2]
[423212644,1779936639000,-441.0,0.00014352,2]
[423212652,1779936639000,-460.0,0.00014352,2]
[423212648,1779936639000,-441.0,0.00014352,2]
[423212650,1779936639000,-441.0,0.00014352,2]
[423212645,1779936639000,-500.0,0.00014352,2]
[423212653,1779936639000,-1012.0,0.00014352,2]
[423212649,1779936639000,-441.0,0.00014352,2]
[423212655,1779936639000,-1012.0,0.00014352,2]
[423212657,1779936639000,-1012.0,0.00014352,2]
[423212654,1779936639000,-1012.0,0.00014352,2]
[423212665,1779936639000,-1012.0,0.00014352,2]
[423212647,1779936639000,-326.52602001,0.00014352,2]
[423212629,1779936639000,-441.0,0.00014352,2]
[423212594,1779936639000,-500.0,0.00014352,2]
[423212626,1779936639000,-500.0,0.00014352,2]
[423212659,1779936639000,-1012.0,0.00014352,2]
[423212592,1779936639000,-500.0,0.00014352,2]
[423212589,1779936639000,-500.0,0.00014352,2]
[423212591,1779936639000,-500.0,0.00014352,2]
[423212588,1779936639000,-500.0,0.00014352,2]
[423212593,1779936639000,-500.0,0.00014352,2]
[423212590,1779936639000,-500.0,0.00014352,2]
[423212596,1779936639000,-500.0,0.00014352,2]
[423212608,1779936639000,-500.0,0.00014352,2]
[423212607,1779936639000,-500.0,0.00014352,2]
[423212610,1779936639000,-441.0,0.00014352,2]
[423212595,1779936639000,-506.71363139,0.00014352,2]
[423212597,1779936639000,-544.97216844,0.00014352,2]
[423212614,1779936639000,-441.0,0.00014352,2]
[423212599,1779936639000,-500.0,0.00014352,2]
[423212601,1779936639000,-500.0,0.00014352,2]
[423212612,1779936639000,-500.0,0.00014352,2]
[423212605,1779936639000,-500.0,0.00014352,2]
[423212603,1779936639000,-500.0,0.00014352,2]
[423212618,1779936639000,-441.0,0.00014352,2]
[423212616,1779936639000,-500.0,0.00014352,2]
[423212628,1779936639000,-500.0,0.00014352,2]
[423212624,1779936639000,-500.0,0.00014352,2]
[423212623,1779936639000,-441.0,0.00014352,2]
[423212625,1779936639000,-441.0,0.00014352,2]
[423212620,1779936639000,-441.0,0.00014352,2]
[423212627,1779936639000,-441.0,0.00014352,2]
[423212622,1779936639000,-500.0,0.00014352,2]
[423212658,1779936639000,-1012.0,0.00014352,2]
[423212710,1779936639000,-613.13,0.00014425,2]
[423212662,1779936639000,-1012.0,0.00014352,2]
[423212698,1779936639000,-3424.02670919,0.00014403,2]
[423212699,1779936639000,-203.976823,0.00014404,2]
[423212695,1779936639000,-150.0,0.00014366,2]
[423212696,1779936639000,-1798.62529453,0.00014374,2]
[423212705,1779936639000,-500.0,0.00014425,2]
[423212694,1779936639000,-465081.163,0.00014354,2]
[423212706,1779936639000,-1968.76,0.00014425,2]
[423212707,1779936639000,-500.0,0.00014425,2]
[423212697,1779936639000,-166.66,0.00014384,2]
[423212700,1779936639000,-150.0,0.00014418,2]
[423212702,1779936639000,-500.0,0.00014425,2]
[423212704,1779936639000,-500.0,0.00014425,2]
[423212703,1779936639000,-500.0,0.00014425,2]
[423212701,1779936639000,-500.0,0.00014425,2]
[423212721,1779936639000,-350.0,0.00014476,2]
[423212709,1779936639000,-610.31,0.00014425,2]
[423212712,1779936639000,-500.0,0.00014425,2]
[423212711,1779936639000,-500.0,0.00014425,2]
[423212708,1779936639000,-500.0,0.00014425,2]
[423212715,1779936639000,-641.79017172,0.00014437,2]
[423212716,1779936639000,-579.24190369,0.00014454,2]
[423212718,1779936639000,-472.7,0.00014463,2]
[423212717,1779936639000,-771.7923836,0.00014454,2]
[423212713,1779936639000,-500.0,0.00014425,2]
[423212714,1779936639000,-5000.0,0.00014432,2]
[423212719,1779936639000,-500.0,0.00014466,2]
[423212660,1779936639000,-1012.0,0.00014352,2]
[423212686,1779936639000,-500.0,0.00014353,2]
[423212693,1779936639000,-912.92,0.00014353,2]
[423212720,1779936639000,-150.0,0.0001447,2]
[423212685,1779936639000,-500.0,0.00014353,2]
[423212666,1779936639000,-1012.0,0.00014352,2]
[423212656,1779936639000,-1012.0,0.00014352,2]
[423212661,1779936639000,-1012.0,0.00014352,2]
[423212664,1779936639000,-1012.0,0.00014352,2]
[423212663,1779936639000,-1012.0,0.00014352,2]
[423212678,1779936639000,-500.0,0.00014353,2]
[423212668,1779936639000,-1012.0,0.00014352,2]
[423212680,1779936639000,-500.0,0.00014353,2]
[423212667,1779936639000,-1012.0,0.00014352,2]
[423212671,1779936639000,-1012.0,0.00014352,2]
[423212675,1779936639000,-1012.0,0.00014352,2]
[423212673,1779936639000,-1012.0,0.00014352,2]
[423212670,1779936639000,-1012.0,0.00014352,2]
[423212679,1779936639000,-472.92193008,0.00014353,2]
[423212669,1779936639000,-1012.0,0.00014352,2]
[423212692,1779936639000,-912.92,0.00014353,2]
[423212672,1779936639000,-1012.0,0.00014352,2]
[423212688,1779936639000,-500.0,0.00014353,2]
[423212682,1779936639000,-500.0,0.00014353,2]
[423212691,1779936639000,-500.0,0.00014353,2]
[423212689,1779936639000,-500.0,0.00014353,2]
[423212690,1779936639000,-500.0,0.00014353,2]
[423212687,1779936639000,-178.74630105,0.00014353,2]
[423212684,1779936639000,-151.70135183,0.00014353,2]
[423212681,1779936639000,-500.0,0.00014353,2]
[423212676,1779936639000,-1022.38617582,0.00014352,2]
[423212677,1779936639000,-5117.30296317,0.00014353,2]
[423212674,1779936639000,-1012.0,0.00014352,2]
[423212683,1779936639000,-259.84867957,0.00014353,2]
[423212761,1779936640000,-500.0,0.00014531,2]
[423212757,1779936640000,-500.0,0.00014531,2]
[423212762,1779936640000,-500.0,0.00014531,2]
[423212758,1779936640000,-500.0,0.00014531,2]
[423212755,1779936640000,-500.0,0.00014531,2]
[423212754,1779936640000,-500.0,0.00014531,2]
[423212756,1779936640000,-500.0,0.00014531,2]
[423212752,1779936640000,-613.13,0.00014531,2]
[423212764,1779936640000,-500.0,0.00014531,2]
[423212759,1779936640000,-500.0,0.00014531,2]
[423212760,1779936640000,-500.0,0.00014531,2]
[423212763,1779936640000,-500.0,0.00014531,2]
[423212780,1779936640000,-25000.0,0.00014618,3]
[423212775,1779936640000,-641.79017166,0.00014591,2]
[423212776,1779936640000,-272.33718325,0.00014602,2]
[423212768,1779936640000,-10108.38787118,0.00014561,2]
[423212770,1779936640000,-3424.02670919,0.00014568,2]
[423212767,1779936640000,-3259.30997247,0.00014537,2]
[423212769,1779936640000,-472.7,0.00014563,2]
[423212772,1779936640000,-1798.62529453,0.00014584,2]
[423212771,1779936640000,-150.0,0.00014573,2]
[423212777,1779936640000,-25000.0,0.0001461,3]
[423212773,1779936640000,-161.34451425,0.00014589,7]
[423212765,1779936640000,-912.92,0.00014531,2]
[423212766,1779936640000,-912.92,0.00014531,2]
[423212753,1779936640000,-500.0,0.00014531,2]
[423212778,1779936640000,-150.0,0.00014612,2]
[423212748,1779936640000,-500.0,0.00014531,2]
[423212732,1779936640000,-198.54154333,0.00014531,2]
[423212744,1779936640000,-500.0,0.00014531,2]
[423212791,1779936640000,-500.0,0.00014626,2]
[423212723,1779936640000,-3424.02670919,0.00014486,2]
[423212722,1779936640000,-1798.62529453,0.00014479,2]
[423212725,1779936640000,-150.0,0.00014487,2]
[423212738,1779936640000,-542.14498926,0.00014531,2]
[423212727,1779936640000,-150.0,0.00014487,2]
[423212730,1779936640000,-350.0,0.0001452,2]
[423212737,1779936640000,-500.0,0.00014531,2]
[423212734,1779936640000,-500.0,0.00014531,2]
[423212736,1779936640000,-500.0,0.00014531,2]
[423212729,1779936640000,-641.79017166,0.00014514,2]
[423212731,1779936640000,-150.0,0.00014521,2]
[423212747,1779936640000,-500.0,0.00014531,2]
[423212726,1779936640000,-150.0,0.00014487,2]
[423212735,1779936640000,-500.0,0.00014531,2]
[423212733,1779936640000,-500.0,0.00014531,2]
[423212739,1779936640000,-500.0,0.00014531,2]
[423212740,1779936640000,-500.0,0.00014531,2]
[423212741,1779936640000,-1968.76,0.00014531,2]
[423212751,1779936640000,-613.13,0.00014531,2]
[423212750,1779936640000,-610.31,0.00014531,2]
[423212743,1779936640000,-500.0,0.00014531,2]
[423212742,1779936640000,-1968.76,0.00014531,2]
[423212746,1779936640000,-500.0,0.00014531,2]
[423212745,1779936640000,-500.0,0.00014531,2]
[423212749,1779936640000,-610.31,0.00014531,2]
[423212728,1779936640000,-629.86,0.00014497,2]
[423212779,1779936640000,-150.0,0.00014612,2]
[423212724,1779936640000,-150.0,0.00014487,2]
[423212782,1779936640000,-500.0,0.00014626,2]
[423212816,1779936640000,-500.0,0.00014626,2]
[423212826,1779936640000,-500.0,0.00014626,2]
[423212815,1779936640000,-268.52651951,0.00014626,2]
[423212818,1779936640000,-500.0,0.00014626,2]
[423212819,1779936640000,-500.0,0.00014626,2]
[423212817,1779936640000,-500.0,0.00014626,2]
[423212823,1779936640000,-500.0,0.00014626,2]
[423212820,1779936640000,-500.0,0.00014626,2]
[423212825,1779936640000,-500.0,0.00014626,2]
[423212821,1779936640000,-500.0,0.00014626,2]
[423212822,1779936640000,-500.0,0.00014626,2]
[423212824,1779936640000,-500.0,0.00014626,2]
[423212814,1779936640000,-500.0,0.00014626,2]
[423212837,1779936640000,-500.0,0.00014626,2]
[423212830,1779936640000,-500.0,0.00014626,2]
[423212836,1779936640000,-500.0,0.00014626,2]
[423212831,1779936640000,-500.0,0.00014626,2]
[423212829,1779936640000,-500.0,0.00014626,2]
[423212839,1779936640000,-500.0,0.00014626,2]
[423212828,1779936640000,-500.0,0.00014626,2]
[423212832,1779936640000,-500.0,0.00014626,2]
[423212840,1779936640000,-159.76686627,0.00014626,2]
[423212838,1779936640000,-500.0,0.00014626,2]
[423212833,1779936640000,-500.0,0.00014626,2]
[423212834,1779936640000,-442.32983881,0.00014626,2]
[423212827,1779936640000,-500.0,0.00014626,2]
[423212835,1779936640000,-500.0,0.00014626,2]
[423212813,1779936640000,-500.0,0.00014626,2]
[423212841,1779936640000,-500.0,0.00014626,2]
[423212806,1779936640000,-174.99607827,0.00014626,2]
[423212812,1779936640000,-500.0,0.00014626,2]
[423212783,1779936640000,-500.0,0.00014626,2]
[423212781,1779936640000,-150.0,0.00014625,2]
[423212788,1779936640000,-500.0,0.00014626,2]
[423212786,1779936640000,-500.0,0.00014626,2]
[423212784,1779936640000,-500.0,0.00014626,2]
[423212787,1779936640000,-500.0,0.00014626,2]
[423212789,1779936640000,-500.0,0.00014626,2]
[423212785,1779936640000,-500.0,0.00014626,2]
[423212793,1779936640000,-500.0,0.00014626,2]
[423212792,1779936640000,-500.0,0.00014626,2]
[423212795,1779936640000,-500.0,0.00014626,2]
[423212794,1779936640000,-500.0,0.00014626,2]
[423212797,1779936640000,-261.89979769,0.00014626,2]
[423212790,1779936640000,-500.0,0.00014626,2]
[423212796,1779936640000,-500.0,0.00014626,2]
[423212802,1779936640000,-500.0,0.00014626,2]
[423212805,1779936640000,-218.45939518,0.00014626,2]
[423212809,1779936640000,-150.0,0.00014626,2]
[423212811,1779936640000,-181.00658249,0.00014626,2]
[423212803,1779936640000,-500.0,0.00014626,2]
[423212807,1779936640000,-150.0,0.00014626,2]
[423212810,1779936640000,-150.0,0.00014626,2]
[423212804,1779936640000,-500.0,0.00014626,2]
[423212800,1779936640000,-500.0,0.00014626,2]
[423212801,1779936640000,-500.0,0.00014626,2]
[423212799,1779936640000,-500.0,0.00014626,2]
[423212798,1779936640000,-500.0,0.00014626,2]
[423212808,1779936640000,-164.83522676,0.00014626,2]
[423212883,1779936641000,-25000.0,0.00014698,3]
[423212882,1779936641000,-10108.38787118,0.00014696,2]
[423212892,1779936641000,-150.0,0.00014737,2]
[423212877,1779936641000,-151.0,0.00014691,2]
[423212869,1779936641000,-25000.0,0.00014689,3]
[423212876,1779936641000,-500.0,0.0001469,2]
[423212875,1779936641000,-500.0,0.0001469,2]
[423212873,1779936641000,-500.0,0.0001469,2]
[423212870,1779936641000,-1798.62529453,0.00014689,2]
[423212874,1779936641000,-500.0,0.0001469,2]
[423212880,1779936641000,-151.0,0.00014691,2]
[423212889,1779936641000,-25000.0,0.00014733,3]
[423212891,1779936641000,-150.0,0.00014737,2]
[423212884,1779936641000,-157.39,0.00014703,2]
[423212885,1779936641000,-25000.0,0.00014706,3]
[423212887,1779936641000,-25000.0,0.00014724,3]
[423212871,1779936641000,-500.0,0.0001469,2]
[423212890,1779936641000,-3424.02670919,0.00014734,2]
[423212888,1779936641000,-150.0,0.00014728,2]
[423212886,1779936641000,-25000.0,0.00014715,3]
[423212904,1779936641000,-25000.0,0.00014768,3]
[423212905,1779936641000,-25000.0,0.00014777,3]
[423212896,1779936641000,-641.79017166,0.00014746,2]
[423212897,1779936641000,-25000.0,0.0001475,3]
[423212893,1779936641000,-150.0,0.00014737,2]
[423212881,1779936641000,-158.712324,0.00014691,2]
[423212872,1779936641000,-502.9853268,0.0001469,2]
[423212865,1779936641000,-641.79017166,0.00014669,2]
[423212878,1779936641000,-151.0,0.00014691,2]
[423212903,1779936641000,-350.0,0.00014768,2]
[423212846,1779936641000,-500.0,0.00014626,2]
[423212852,1779936641000,-562.48877466,0.00014626,2]
[423212842,1779936641000,-500.0,0.00014626,2]
[423212844,1779936641000,-500.0,0.00014626,2]
[423212847,1779936641000,-500.0,0.00014626,2]
[423212848,1779936641000,-500.0,0.00014626,2]
[423212850,1779936641000,-500.0,0.00014626,2]
[423212845,1779936641000,-500.0,0.00014626,2]
[423212851,1779936641000,-500.0,0.00014626,2]
[423212849,1779936641000,-500.0,0.00014626,2]
[423212843,1779936641000,-500.0,0.00014626,2]
[423212867,1779936641000,-150.0,0.00014676,2]
[423212855,1779936641000,-25000.0,0.00014636,3]
[423212860,1779936641000,-300.0,0.00014654,2]
[423212854,1779936641000,-10108.38787118,0.00014628,2]
[423212857,1779936641000,-3424.02670919,0.00014651,2]
[423212853,1779936641000,-25000.0,0.00014627,3]
[423212862,1779936641000,-217.57617211,0.00014654,2]
[423212866,1779936641000,-25000.0,0.00014671,3]
[423212863,1779936641000,-472.7,0.00014661,2]
[423212864,1779936641000,-25000.0,0.00014662,3]
[423212861,1779936641000,-300.0,0.00014654,2]
[423212859,1779936641000,-25000.0,0.00014654,3]
[423212879,1779936641000,-151.0,0.00014691,2]
[423212868,1779936641000,-25000.0,0.0001468,3]
[423212858,1779936641000,-150.0,0.00014653,2]
[423212856,1779936641000,-25000.0,0.00014645,3]
[423212898,1779936641000,-25000.0,0.00014759,3]
[423212895,1779936641000,-25000.0,0.00014742,3]
[423212929,1779936641000,-25000.0,0.0001483,3]
[423212948,1779936641000,-150.0,0.00014883,2]
[423212949,1779936641000,-500.0,0.0001489,2]
[423212938,1779936641000,-25000.0,0.00014865,3]
[423212939,1779936641000,-25000.0,0.00014865,3]
[423212937,1779936641000,-472.72857126,0.0001486,2]
[423212944,1779936641000,-500.0,0.00014882,2]
[423212941,1779936641000,-912.92,0.00014873,2]
[423212940,1779936641000,-500.0,0.00014873,2]
[423212946,1779936641000,-25000.0,0.00014882,3]
[423212947,1779936641000,-25000.0,0.00014882,3]
[423212943,1779936641000,-25000.0,0.00014874,3]
[423212933,1779936641000,-25000.0,0.00014847,3]
[423212942,1779936641000,-25000.0,0.00014874,3]
[423212950,1779936641000,-25000.0,0.00014891,3]
[423212954,1779936641000,-500.0,0.00014899,2]
[423212952,1779936641000,-500.0,0.00014899,2]
[423212953,1779936641000,-500.0,0.00014899,2]
[423212960,1779936641000,-610.31,0.00014899,2]
[423212957,1779936641000,-500.0,0.00014899,2]
[423212959,1779936641000,-500.0,0.00014899,2]
[423212955,1779936641000,-500.0,0.00014899,2]
[423212956,1779936641000,-1968.76,0.00014899,2]
[423212958,1779936641000,-500.0,0.00014899,2]
[423212961,1779936641000,-613.13,0.00014899,2]
[423212902,1779936641000,-912.92,0.00014767,2]
[423212951,1779936641000,-25000.0,0.00014891,3]
[423212930,1779936641000,-150.0,0.00014831,2]
[423212945,1779936641000,-500.0,0.00014882,2]
[423212928,1779936641000,-6046.8758485,0.00014828,2]
[423212901,1779936641000,-500.0,0.00014767,2]
[423212932,1779936641000,-25000.0,0.00014838,3]
[423212900,1779936641000,-10108.38787118,0.00014764,2]
[423212899,1779936641000,-472.7,0.0001476,2]
[423212909,1779936641000,-500.0,0.00014794,2]
[423212907,1779936641000,-25000.0,0.00014786,3]
[423212908,1779936641000,-500.0,0.00014794,2]
[423212906,1779936641000,-150.0,0.0001478,2]
[423212910,1779936641000,-25000.0,0.00014794,3]
[423212913,1779936641000,-25000.0,0.00014803,3]
[423212911,1779936641000,-1798.62529453,0.00014795,2]
[423212914,1779936641000,-166.23,0.00014806,2]
[423212915,1779936641000,-25000.0,0.00014812,3]
[423212916,1779936641000,-150.0,0.0001482,2]
[423212912,1779936641000,-550.67499118,0.000148,2]
[423212926,1779936641000,-3577.0649656,0.00014828,2]
[423212936,1779936641000,-25000.0,0.00014856,3]
[423212917,1779936641000,-25000.0,0.00014821,3]
[423212927,1779936641000,-6944.5514636,0.00014828,2]
[423212934,1779936641000,-550.67499117,0.0001485,2]
[423212931,1779936641000,-10108.38787118,0.00014832,2]
[423212925,1779936641000,-2104.3372754,0.00014828,2]
[423212935,1779936641000,-25000.0,0.00014856,3]
[423212923,1779936641000,-500.0,0.00014827,2]
[423212922,1779936641000,-500.0,0.00014827,2]
[423212921,1779936641000,-500.0,0.00014827,2]
[423212920,1779936641000,-641.79017166,0.00014823,2]
[423212924,1779936641000,-148939.0269352,0.00014828,2]
[423213004,1779936642000,-500.0,0.00014999,2]
[423213002,1779936642000,-500.0,0.00014999,2]
[423213006,1779936642000,-500.0,0.00014999,2]
[423213005,1779936642000,-354.71893145,0.00014999,2]
[423213010,1779936642000,-500.0,0.00014999,2]
[423212993,1779936642000,-1734.85718942,0.00014999,5]
[423213000,1779936642000,-500.0,0.00014999,2]
[423212992,1779936642000,-500.0,0.00014998,2]
[423212995,1779936642000,-500.0,0.00014999,2]
[423212989,1779936642000,-219.56928089,0.0001499,2]
[423213008,1779936642000,-500.0,0.00014999,2]
[423212999,1779936642000,-500.0,0.00014999,2]
[423213003,1779936642000,-500.0,0.00014999,2]
[423213021,1779936642000,-500.0,0.00014999,2]
[423213009,1779936642000,-500.0,0.00014999,2]
[423213001,1779936642000,-500.0,0.00014999,2]
[423213012,1779936642000,-500.0,0.00014999,2]
[423213018,1779936642000,-500.0,0.00014999,2]
[423213011,1779936642000,-500.0,0.00014999,2]
[423213023,1779936642000,-500.0,0.00014999,2]
[423213022,1779936642000,-500.0,0.00014999,2]
[423213013,1779936642000,-500.0,0.00014999,2]
[423213015,1779936642000,-265.51726657,0.00014999,2]
[423213017,1779936642000,-500.0,0.00014999,2]
[423213014,1779936642000,-500.0,0.00014999,2]
[423213019,1779936642000,-645.86663214,0.00014999,2]
[423212994,1779936642000,-500.0,0.00014999,2]
[423213007,1779936642000,-500.0,0.00014999,2]
[423212991,1779936642000,-500.0,0.00014998,2]
[423212967,1779936642000,-11801.64756349,0.000149,2]
[423212990,1779936642000,-219.56928089,0.0001499,2]
[423213016,1779936642000,-500.0,0.00014999,2]
[423212964,1779936642000,-500.0,0.00014899,2]
[423212972,1779936642000,-3680.0,0.000149,5]
[423212963,1779936642000,-526.59276587,0.00014899,2]
[423212966,1779936642000,-11801.64756349,0.00014899,2]
[423212968,1779936642000,-25000.0,0.000149,3]
[423212962,1779936642000,-500.0,0.00014899,2]
[423212969,1779936642000,-3937.0,0.000149,5]
[423212965,1779936642000,-199.89857943,0.00014899,2]
[423212971,1779936642000,-25000.0,0.000149,3]
[423212970,1779936642000,-10000.0,0.000149,2]
[423212986,1779936642000,-150.0,0.00014986,2]
[423212983,1779936642000,-151.20586673,0.00014986,2]
[423212997,1779936642000,-500.0,0.00014999,2]
[423212974,1779936642000,-641.79017166,0.000149,2]
[423212980,1779936642000,-150.0,0.00014935,2]
[423212975,1779936642000,-1798.62529453,0.000149,2]
[423212981,1779936642000,-155.83277479,0.00014986,2]
[423212976,1779936642000,-199.89857942,0.000149,2]
[423212985,1779936642000,-299.77780379,0.00014986,2]
[423212978,1779936642000,-11801.64756349,0.000149,2]
[423212979,1779936642000,-150.0,0.00014925,2]
[423212982,1779936642000,-151.80616668,0.00014986,2]
[423212984,1779936642000,-260.66856818,0.00014986,2]
[423212988,1779936642000,-293.68053697,0.00014986,2]
[423212987,1779936642000,-153.62961216,0.00014986,2]
[423212996,1779936642000,-500.0,0.00014999,2]
[423212998,1779936642000,-500.0,0.00014999,2]
[423212977,1779936642000,-550.67499117,0.000149,2]
[423213020,1779936642000,-500.0,0.00014999,2]
[423212973,1779936642000,-10108.38787118,0.000149,2]
[423213026,1779936642000,-500.0,0.00014999,2]
[423213054,1779936642000,-1968.76,0.00014999,2]
[423213059,1779936642000,-500.0,0.00014999,2]
[423213062,1779936642000,-1968.78216464,0.00014999,2]
[423213074,1779936642000,-500.0,0.00014999,2]
[423213073,1779936642000,-500.0,0.00014999,2]
[423213061,1779936642000,-500.0,0.00014999,2]
[423213064,1779936642000,-500.0,0.00014999,2]
[423213067,1779936642000,-500.0,0.00014999,2]
[423213066,1779936642000,-500.0,0.00014999,2]
[423213072,1779936642000,-500.0,0.00014999,2]
[423213063,1779936642000,-500.0,0.00014999,2]
[423213065,1779936642000,-500.0,0.00014999,2]
[423213070,1779936642000,-500.0,0.00014999,2]
[423213056,1779936642000,-1968.76,0.00014999,2]
[423213069,1779936642000,-500.0,0.00014999,2]
[423213068,1779936642000,-500.0,0.00014999,2]
[423213075,1779936642000,-500.0,0.00014999,2]
[423213080,1779936642000,-500.0,0.00014999,2]
[423213086,1779936642000,-500.0,0.00014999,2]
[423213083,1779936642000,-500.0,0.00014999,2]
[423213076,1779936642000,-500.0,0.00014999,2]
[423213077,1779936642000,-525.71063525,0.00014999,2]
[423213079,1779936642000,-500.0,0.00014999,2]
[423213084,1779936642000,-500.0,0.00014999,2]
[423213082,1779936642000,-500.0,0.00014999,2]
[423213078,1779936642000,-500.0,0.00014999,2]
[423213081,1779936642000,-500.0,0.00014999,2]
[423213024,1779936642000,-500.0,0.00014999,2]
[423213071,1779936642000,-311.50322523,0.00014999,2]
[423213050,1779936642000,-1968.76,0.00014999,2]
[423213085,1779936642000,-500.0,0.00014999,2]
[423213049,1779936642000,-500.0,0.00014999,2]
[423213057,1779936642000,-500.0,0.00014999,2]
[423213028,1779936642000,-500.0,0.00014999,2]
[423213029,1779936642000,-500.0,0.00014999,2]
[423213035,1779936642000,-1968.76,0.00014999,2]
[423213025,1779936642000,-500.0,0.00014999,2]
[423213030,1779936642000,-500.0,0.00014999,2]
[423213034,1779936642000,-1968.76,0.00014999,2]
[423213032,1779936642000,-500.0,0.00014999,2]
[423213033,1779936642000,-336.21063525,0.00014999,2]
[423213031,1779936642000,-500.0,0.00014999,2]
[423213037,1779936642000,-1968.76,0.00014999,2]
[423213047,1779936642000,-500.0,0.00014999,2]
[423213036,1779936642000,-1968.76,0.00014999,2]
[423213039,1779936642000,-1968.76,0.00014999,2]
[423213027,1779936642000,-500.0,0.00014999,2]
[423213040,1779936642000,-1968.76,0.00014999,2]
[423213038,1779936642000,-1968.76,0.00014999,2]
[423213060,1779936642000,-1968.76,0.00014999,2]
[423213055,1779936642000,-1968.76,0.00014999,2]
[423213058,1779936642000,-1968.76,0.00014999,2]